fUSD/lending_fUSD_20260309
["ID","MTS","AMOUNT","RATE_DAILY","PERIOD"]
[408056383,1773081038473,-500.0,0.00019673,2]
[408056384,1773081038482,-470.82,0.00019673,2]
[408056385,1773081038491,-200.0,0.00019673,2]
[408056386,1773081038500,-150.0,0.00019673,2]
[408056387,1773081038510,-250.0,0.00019673,2]
[408056388,1773081038519,-150.0,0.00019673,2]
[408056389,1773081038529,-150.0,0.00019673,2]
[408056390,1773081038541,-555.6121839,0.00019673,2]
[408056391,1773081038552,-286.3878161,0.00019673,2]
[408056392,1773081038561,-277.7008023,0.00019673,2]
[408056393,1773081038581,-222.2991977,0.00019673,2]
[408056394,1773081038590,-500.0,0.00019673,2]
[408056395,1773081038599,-525.0,0.00019673,2]
[408056396,1773081038609,-500.0,0.00019673,2]
[408056397,1773081038619,-318.80514855,0.00019673,2]
[408056398,1773081038630,-181.19485145,0.00019673,2]
[408056399,1773081038639,-150.0,0.00019673,2]
[408056400,1773081038648,-150.0,0.00019673,2]
[408056401,1773081038657,-150.0,0.00019673,2]
[408056402,1773081038666,-150.0,0.00019673,2]
[408056403,1773081038675,-150.0,0.00019673,2]
[408056404,1773081038684,-500.0,0.00019673,2]
[408056405,1773081038693,-500.0,0.00019673,2]
[408056406,1773081038708,-150.0,0.00019673,2]
[408056407,1773081038722,-150.0,0.00019673,2]
[408056408,1773081038731,-89.39411211,0.00019673,2]
[408056409,1773081038745,-60.60588789,0.00019673,2]
[408056410,1773081038755,-500.0,0.00019673,2]
[408056411,1773081038765,-500.0,0.00019673,2]
[408056412,1773081038776,-241.0,0.00019675,2]
[408056413,1773081038786,-160.0,0.00019679,2]
[408056414,1773081038796,-162.0,0.0001968,2]
[408056415,1773081038806,-1560.41,0.00019681,2]
[408056416,1773081038816,-204.75532238,0.00019699,2]
[408056417,1773081038825,-204.75532237,0.00019699,2]
[408056418,1773081038835,-169.14570109,0.00019699,2]
[408056419,1773081038844,-2024.0,0.000197,2]
[408056420,1773081038854,-250.0,0.00019703,2]
[408056421,1773081038865,-241.0,0.00019716,2]
[408056422,1773081038875,-250.0,0.00019726,2]
[408056423,1773081038885,-1000.0,0.00019726,2]
[408056424,1773081038894,-150.0,0.00019728,2]
[408056425,1773081038904,-500.0,0.00019728,2]
[408056426,1773081038913,-513.0,0.00019728,2]
[408056427,1773081038923,-500.0,0.00019728,2]
[408056428,1773081038932,-160.57620522,0.00019728,2]
[408056429,1773081038941,-150.0,0.00019728,2]
[408056430,1773081038951,-150.0,0.00019728,2]
[408056431,1773081038961,-500.0,0.00019728,2]
[408056432,1773081038970,-150.0,0.00019728,2]
[408056433,1773081038980,-253.29632904,0.00019728,2]
[408056434,1773081038990,-150.0,0.00019728,2]
[408056435,1773081039000,-842.0,0.00019728,2]
[408056436,1773081039010,-500.0,0.00019728,2]
[408056437,1773081039020,-500.0,0.00019728,2]
[408056438,1773081039029,-525.0,0.00019728,2]
[408056439,1773081039041,-500.0,0.00019728,2]
[408056440,1773081039051,-500.0,0.00019728,2]
[408056441,1773081039060,-150.0,0.00019728,2]
[408056442,1773081039071,-150.0,0.00019728,2]
[408056443,1773081039083,-150.74409358,0.00019728,2]
[408056444,1773081039095,-36.25050566,0.00019728,2]
[408056445,1773081039104,-150.0,0.00019728,2]
[408056446,1773081039114,-500.0,0.00019728,2]
[408056447,1773081039123,-550.0,0.00019728,2]
[408056448,1773081039132,-500.0,0.00019728,2]
[408056449,1773081039142,-500.0,0.00019728,2]
[408056450,1773081039152,-112.10509645,0.00019747,2]
[408056451,1773081039164,-37.89490355,0.00019747,2]
[408056452,1773081039173,-250.0,0.00019753,2]
[408056453,1773081039183,-155.38743832,0.00019753,2]
[408056454,1773081039192,-195.2730319,0.00019753,2]
[408056455,1773081039204,-9.48229048,0.00019753,2]
[408056456,1773081039214,-204.75532237,0.00019753,2]
[408056457,1773081039226,-169.14570109,0.00019753,2]
[408056458,1773081039236,-241.0,0.00019756,2]
[408056459,1773081039246,-150.0,0.00019783,2]
[408056460,1773081039556,-500.0,0.00019783,2]
[408056461,1773081039567,-513.0,0.00019783,2]
[408056462,1773081039576,-500.0,0.00019783,2]
[408056463,1773081039585,-200.0,0.00019783,2]
[408056464,1773081039595,-250.0,0.00019783,2]
[408056465,1773081039606,-500.0,0.00019783,2]
[408056466,1773081039615,-70.02326955,0.00019783,2]
[408056467,1773081039627,-129.97673045,0.00019783,2]
[408056468,1773081039637,-200.0,0.00019783,2]
[408056469,1773081039646,-842.0,0.00019783,2]
[408056470,1773081039655,-500.0,0.00019783,2]
[408056471,1773081039664,-544.737577,0.00019783,2]
[408056472,1773081039674,-525.0,0.00019783,2]
[408056473,1773081039683,-500.0,0.00019783,2]
[408056474,1773081039692,-500.0,0.00019783,2]
[408056475,1773081039701,-150.0,0.00019783,2]
[408056476,1773081039711,-261.02563779,0.00019783,2]
[408056477,1773081039721,-150.0,0.00019783,2]
[408056478,1773081039731,-500.0,0.00019783,2]
[408056479,1773081039740,-500.0,0.00019783,2]
[408056480,1773081039752,-407.93036646,0.00019783,2]
[408056481,1773081039762,-250.0,0.00019783,2]
[408056482,1773081039772,-241.0,0.00019797,2]
[408056483,1773081039782,-153.15462612,0.00019798,3]
[408056484,1773081039791,-2500.0,0.00019798,2]
[408056486,1773081039802,-500.0,0.00019799,2]
[408056487,1773081039811,-500.0,0.00019799,2]
[408056488,1773081039820,-531.74,0.00019799,2]
[408056489,1773081039830,-500.0,0.00019799,2]
[408056490,1773081039840,-500.0,0.00019799,2]
[408056491,1773081039849,-563.43,0.00019799,2]
[408056492,1773081039858,-500.0,0.00019799,2]
[408056493,1773081039867,-500.0,0.00019799,2]
[408056494,1773081039875,-500.0,0.00019799,2]
[408056495,1773081039884,-500.0,0.00019799,2]
[408056496,1773081039893,-500.0,0.00019799,2]
[408056497,1773081039902,-500.0,0.00019799,2]
[408056498,1773081039911,-500.0,0.00019799,2]
[408056499,1773081039921,-500.0,0.00019799,2]
[408056500,1773081039930,-500.0,0.00019799,2]
[408056501,1773081039939,-500.0,0.00019799,2]
[408056502,1773081039948,-500.0,0.00019799,2]
[408056503,1773081039958,-1179.71098078,0.00019799,2]
[408056504,1773081039967,-2000.0,0.000198,2]
[408056505,1773081039979,-2000.0,0.000198,2]
[408056506,1773081039989,-250.0,0.000198,2]
[408056507,1773081039999,-800.0,0.00019801,2]
[408056508,1773081040010,-164.9,0.0001981,2]
[408056509,1773081040019,-1179.71098078,0.00019813,2]
[408056510,1773081040028,-32927.6463,0.00019814,2]
[408056511,1773081040037,-1000.0,0.00019819,2]
[408056512,1773081040047,-742.0,0.0001982,2]
[408056513,1773081040056,-3084.892,0.00019823,2]
[408056514,1773081040065,-173.515,0.00019823,2]
[408056515,1773081040074,-1179.71098078,0.00019828,2]
[408056516,1773081040084,-250.0,0.00019833,2]
[408056517,1773081040093,-500.0,0.00019835,2]
[408056518,1773081040103,-155.38743832,0.00019836,2]
[408056519,1773081040114,-204.75532238,0.00019836,2]
[408056520,1773081040124,-204.75532237,0.00019836,2]
[408056521,1773081040134,-169.14570109,0.00019836,2]
[408056522,1773081040143,-160.24329577,0.00019836,2]
[408056523,1773081040152,-241.0,0.00019837,2]
[408056524,1773081040161,-250.0,0.00019837,2]
[408056525,1773081040171,-500.0,0.00019837,2]
[408056526,1773081040180,-513.0,0.00019837,2]
[408056527,1773081040189,-500.0,0.00019837,2]
[408056528,1773081040199,-500.0,0.00019837,2]
[408056529,1773081040209,-842.0,0.00019837,2]
[408056530,1773081040218,-250.0,0.00019837,2]
[408056531,1773081040229,-525.0,0.00019837,2]
[408056532,1773081040239,-500.0,0.00019837,2]
[408056533,1773081040248,-150.0,0.00019837,2]
[408056534,1773081040259,-150.0,0.00019837,2]
[408056535,1773081040270,-550.0,0.00019837,2]
[408056536,1773081040279,-500.0,0.00019837,2]
[408056537,1773081040292,-168.0,0.00019839,2]
[408056538,1773081040302,-1179.71098078,0.00019842,2]
[408056539,1773081040312,-1179.71098078,0.00019857,2]
[408056540,1773081040322,-168.0,0.00019861,2]
[408056541,1773081040332,-1000.0,0.00019861,2]
[408056542,1773081040341,-250.0,0.00019861,2]
[408056543,1773081040350,-1179.71098078,0.00019871,2]
[408056544,1773081040360,-200.0,0.00019872,2]
[408056545,1773081040370,-241.0,0.00019878,2]
[408056546,1773081040379,-1179.71098078,0.00019886,2]
[408056547,1773081040388,-500.0,0.00019892,2]
[408056548,1773081040398,-513.0,0.00019892,2]
[408056549,1773081040407,-500.0,0.00019892,2]
[408056550,1773081040416,-500.0,0.00019892,2]
[408056551,1773081040426,-842.0,0.00019892,2]
[408056552,1773081040435,-525.0,0.00019892,2]
[408056553,1773081040444,-500.0,0.00019892,2]
[408056554,1773081040453,-150.0,0.00019892,2]
[408056555,1773081040463,-150.0,0.00019892,2]
[408056556,1773081040473,-500.0,0.00019892,2]
[408056557,1773081040483,-10015.92836409,0.00019897,2]
[408056558,1773081040492,-10015.92836401,0.00019897,2]
[408056559,1773081040501,-8619.94406499,0.00019898,2]
[408056560,1773081040518,-1395.98429902,0.00019898,2]
[408056561,1773081040530,-7686.89348052,0.00019898,2]
[408056562,1773081040542,-2329.03488349,0.00019898,2]
[408056563,1773081040551,-217.94309222,0.00019898,2]
[408056564,1773081040561,-7386.81219379,0.00019898,2]
[408056565,1773081040577,-1542.02172142,0.00019898,2]
[408056566,1773081040588,-350.74078479,0.00019898,2]
[408056567,1773081040598,-1000.0,0.00019898,2]
[408056568,1773081040611,-5000.0,0.00019898,2]
[408056569,1773081040620,-5349.57455621,0.00019898,2]
[408056570,1773081040631,-4666.3538078,0.00019898,2]
[408056571,1773081040641,-7339.94577058,0.00019899,2]
[408056572,1773081040652,-2675.98259343,0.00019899,2]
[408056573,1773081040661,-10015.92836401,0.00019899,2]
[408056574,1773081040671,-10015.92836401,0.00019899,2]
[408056575,1773081040680,-10015.92836401,0.000199,2]
[408056576,1773081040690,-150.75875488,0.000199,5]
[408056577,1773081040699,-2523.05736046,0.000199,2]
[408056578,1773081040709,-4265.13502092,0.000199,2]
[408056579,1773081040905,-1534.86497908,0.000199,2]
[408056580,1773081040915,-2886.12621821,0.000199,2]
[408056581,1773081040927,-7129.8021458,0.000199,2]
[408056582,1773081040937,-1744.43292007,0.000199,2]
[408056583,1773081040946,-250.0,0.000199,2]
[408056584,1773081040956,-1510.23111655,0.000199,2]
[408056585,1773081040966,-217.94309222,0.000199,2]
[408056586,1773081040977,-1179.71098078,0.000199,2]
[408056587,1773081040987,-939.76674134,0.000199,2]
[408056588,1773081040997,-2399.0,0.000199,2]
[408056589,1773081041006,-1000.0,0.00019906,2]
[408056590,1773081041017,-28074.1338406,0.00019914,2]
[408056591,1773081041028,-3045.2265315,0.00019914,2]
[408056592,1773081041037,-2330.5096711,0.00019914,2]
[408056593,1773081041048,-15867.1770805,0.00019914,2]
[408056594,1773081041059,-241.0,0.00019919,2]
[408056595,1773081041069,-250.0,0.0001992,2]
[408056596,1773081041079,-1000.0,0.00019926,2]
[408056597,1773081041089,-168.0,0.00019929,2]
[408056598,1773081041099,-500.0,0.00019947,2]
[408056599,1773081041111,-513.0,0.00019947,2]
[408056600,1773081041121,-500.0,0.00019947,2]
[408056601,1773081041130,-500.0,0.00019947,2]
[408056602,1773081041139,-842.0,0.00019947,2]
[408056603,1773081041149,-525.0,0.00019947,2]
[408056604,1773081041158,-250.0,0.00019947,2]
[408056605,1773081041168,-250.0,0.00019947,2]
[408056606,1773081041177,-500.0,0.00019947,2]
[408056607,1773081041187,-470.82,0.00019947,2]
[408056608,1773081041196,-250.0,0.00019951,2]
[408056609,1773081041206,-241.0,0.00019959,2]
[408056610,1773081041215,-1279.0,0.00019963,2]
[408056611,1773081041224,-1213.0,0.00019963,2]
[408056612,1773081041235,-922.0,0.00019963,2]
[408056613,1773081041245,-1342.0,0.00019963,2]
[408056614,1773081041255,-619.0,0.00019963,2]
[408056615,1773081041264,-250.0,0.00019964,2]
[408056616,1773081041273,-1387.95,0.00019968,2]
[408056617,1773081041283,-179.0,0.00019969,2]
[408056618,1773081041293,-400.0,0.0001997,2]
[408056619,1773081041303,-400.0,0.0001997,2]
[408056620,1773081041313,-400.0,0.0001997,2]
[408056621,1773081041323,-541.01514806,0.0001997,2]
[408056622,1773081041332,-500.0,0.00019973,2]
[408056623,1773081041342,-500.0,0.00019973,2]
[408056624,1773081041351,-1000.0,0.0001999,2]
[408056625,1773081041361,-1242.12037372,0.0001999,2]
[408056626,1773081041370,-1242.12037372,0.0001999,2]
[408056627,1773081041381,-1242.12037372,0.0001999,2]
[408056628,1773081041392,-151.0,0.00019997,2]
[408056629,1773081041401,-151.0,0.00019997,2]
[408056630,1773081041411,-500.0,0.00019997,2]
[408056631,1773081041420,-500.0,0.00019997,2]
[408056632,1773081041430,-57045.5019944,0.00019998,2]
[408056633,1773081041439,-341836.018167,0.00019998,2]
[408056634,1773081041448,-32002.3358049,0.00019998,2]
[408056635,1773081041457,-151.337108,0.00019998,2]
[408056636,1773081041467,-363.591776,0.00019998,2]
[408056637,1773081041477,-363.591776,0.00019998,2]
[408056638,1773081041486,-363.591776,0.00019998,2]
[408056639,1773081041496,-363.591776,0.00019998,2]
[408056640,1773081041506,-176.639564,0.00019998,2]
[408056641,1773081041515,-151.0,0.00019998,2]
[408056642,1773081041526,-151.0,0.00019998,2]
[408056643,1773081041538,-151.0,0.00019998,2]
[408056644,1773081041547,-151.0,0.00019998,2]
[408056645,1773081041556,-151.0,0.00019998,2]
[408056646,1773081041566,-151.0,0.00019998,2]
[408056647,1773081041577,-151.0,0.00019998,2]
[408056648,1773081041587,-151.0,0.00019998,2]
[408056649,1773081041596,-278.37993,0.00019998,2]
[408056650,1773081041607,-603.127175,0.00019998,2]
[408056651,1773081041616,-603.127175,0.00019998,2]
[408056652,1773081041626,-603.127175,0.00019998,2]
[408056653,1773081041636,-603.127175,0.00019998,2]
[408056654,1773081041645,-861.35316821,0.00019999,2]
[408056655,1773081041654,-300.0,0.00019999,2]
[408056656,1773081041664,-666.0,0.00019999,2]
[408056657,1773081041673,-300.0,0.00019999,2]
[408056658,1773081041682,-156.17,0.00019999,2]
[408056659,1773081041692,-500.0,0.00019999,2]
[408056660,1773081041701,-500.0,0.00019999,2]
[408056661,1773081041711,-500.0,0.00019999,2]
[408056662,1773081041720,-602.40025463,0.00019999,2]
[408056663,1773081041730,-500.0,0.00019999,2]
[408056664,1773081041739,-500.0,0.00019999,2]
[408056665,1773081041749,-500.0,0.00019999,2]
[408056666,1773081041759,-500.0,0.00019999,2]
[408056667,1773081041768,-500.0,0.00019999,2]
[408056668,1773081041778,-500.0,0.00019999,2]
[408056669,1773081041787,-500.0,0.00019999,2]
[408056670,1773081041798,-500.0,0.00019999,2]
[408056671,1773081041808,-500.0,0.00019999,2]
[408056672,1773081041818,-500.0,0.00019999,2]
[408056673,1773081041827,-500.0,0.00019999,2]
[408056674,1773081041837,-500.0,0.00019999,2]
[408056675,1773081041847,-500.0,0.00019999,2]
[408056676,1773081041857,-500.0,0.00019999,2]
[408056677,1773081041867,-500.0,0.00019999,2]
[408056678,1773081041876,-500.0,0.00019999,2]
[408056679,1773081041887,-500.0,0.00019999,2]
[408056680,1773081041899,-500.0,0.00019999,2]
[408056681,1773081041908,-500.0,0.00019999,2]
[408056682,1773081041918,-546.33,0.00019999,2]
[408056683,1773081041928,-531.74,0.00019999,2]
[408056684,1773081041938,-531.74,0.00019999,2]
[408056685,1773081041947,-531.74,0.00019999,2]
[408056686,1773081041957,-531.74,0.00019999,2]
[408056687,1773081041968,-531.74,0.00019999,2]
[408056688,1773081041978,-531.74,0.00019999,2]
[408056689,1773081041988,-531.74,0.00019999,2]
[408056690,1773081041998,-531.74,0.00019999,2]
[408056691,1773081042009,-531.74,0.00019999,2]
[408056692,1773081042019,-531.74,0.00019999,2]
[408056693,1773081042028,-531.74,0.00019999,2]
[408056694,1773081042039,-531.74,0.00019999,2]
[408056695,1773081042050,-531.74,0.00019999,2]
[408056696,1773081042060,-531.74,0.00019999,2]
[408056697,1773081042070,-531.74,0.00019999,2]
[408056698,1773081042081,-531.74,0.00019999,2]
[408056699,1773081042090,-531.74,0.00019999,2]
[408056700,1773081042101,-531.74,0.00019999,2]
[408056701,1773081042112,-531.74,0.00019999,2]
[408056702,1773081042121,-531.74,0.00019999,2]
[408056703,1773081042131,-531.74,0.00019999,2]
[408056704,1773081042140,-531.74,0.00019999,2]
[408056705,1773081042149,-531.838378,0.00019999,2]
[408056706,1773081042159,-500.0,0.00019999,2]
[408056707,1773081042168,-500.0,0.00019999,2]
[408056708,1773081042177,-500.0,0.00019999,2]
[408056709,1773081042187,-500.0,0.00019999,2]
[408056710,1773081042196,-500.0,0.00019999,2]
[408056711,1773081042206,-500.0,0.00019999,2]
[408056712,1773081042215,-500.0,0.00019999,2]
[408056713,1773081042226,-500.0,0.00019999,2]
[408056714,1773081042236,-500.0,0.00019999,2]
[408056715,1773081042245,-274.9282927,0.00019999,2]
[408056716,1773081042254,-500.0,0.00019999,2]
[408056721,1773081042264,-584.74137557,0.00019999,2]
[408056724,1773081042478,-563.43,0.00019999,2]
[408056726,1773081042487,-563.43,0.00019999,2]
[408056728,1773081042497,-563.43,0.00019999,2]
[408056730,1773081042506,-563.43,0.00019999,2]
[408056732,1773081042516,-563.43,0.00019999,2]
[408056734,1773081042526,-563.43,0.00019999,2]
[408056735,1773081042538,-563.43,0.00019999,2]
[408056737,1773081042547,-563.43,0.00019999,2]
[408056738,1773081042557,-563.43,0.00019999,2]
[408056739,1773081042566,-563.43,0.00019999,2]
[408056740,1773081042578,-563.43,0.00019999,2]
[408056741,1773081042587,-563.43,0.00019999,2]
[408056742,1773081042596,-563.43,0.00019999,2]
[408056744,1773081042608,-563.43,0.00019999,2]
[408056745,1773081042618,-563.43,0.00019999,2]
[408056746,1773081042627,-563.43,0.00019999,2]
[408056747,1773081042636,-563.43,0.00019999,2]
[408056749,1773081042646,-563.43,0.00019999,2]
[408056752,1773081042655,-563.43,0.00019999,2]
[408056753,1773081042665,-563.43,0.00019999,2]
[408056755,1773081042674,-563.43,0.00019999,2]
[408056759,1773081042684,-563.43,0.00019999,2]
[408056762,1773081042695,-563.53,0.00019999,2]
[408056766,1773081042709,-500.0,0.00019999,2]
[408056769,1773081042719,-500.0,0.00019999,2]
[408056771,1773081042729,-500.0,0.00019999,2]
[408056773,1773081042738,-500.0,0.00019999,2]
[408056776,1773081042748,-500.0,0.00019999,2]
[408056777,1773081042757,-500.0,0.00019999,2]
[408056778,1773081042766,-500.0,0.00019999,2]
[408056779,1773081042775,-191.31621318,0.00019999,2]
[408056780,1773081042785,-500.0,0.00019999,2]
[408056781,1773081042795,-500.0,0.00019999,2]
[408056783,1773081042804,-500.0,0.00019999,2]
[408056785,1773081042814,-500.0,0.00019999,2]
[408056787,1773081042823,-500.0,0.00019999,2]
[408056789,1773081042833,-500.0,0.00019999,2]
[408056791,1773081042843,-500.0,0.00019999,2]
[408056792,1773081042852,-500.0,0.00019999,2]
[408056793,1773081042861,-500.0,0.00019999,2]
[408056794,1773081042871,-500.0,0.00019999,2]
[408056795,1773081042884,-500.0,0.00019999,2]
[408056796,1773081042894,-500.0,0.00019999,2]
[408056797,1773081042904,-201.56469632,0.00019999,2]
[408056798,1773081042913,-500.0,0.00019999,2]
[408056799,1773081042922,-500.0,0.00019999,2]
[408056800,1773081042932,-500.0,0.00019999,2]
[408056801,1773081042941,-275.18071975,0.00019999,2]
[408056802,1773081042950,-289.3873478,0.00019999,2]
[408056803,1773081042959,-500.0,0.00019999,2]
[408056804,1773081042968,-500.0,0.00019999,2]
[408056805,1773081042978,-500.0,0.00019999,2]
[408056806,1773081042986,-500.0,0.00019999,2]
[408056807,1773081042996,-500.0,0.00019999,2]
[408056808,1773081043005,-500.0,0.00019999,2]
[408056809,1773081043015,-500.0,0.00019999,2]
[408056810,1773081043025,-198.73,0.00019999,2]
[408056811,1773081043035,-503.55073109,0.00019999,2]
[408056812,1773081043046,-500.0,0.00019999,2]
[408056813,1773081043056,-500.0,0.00019999,2]
[408056814,1773081043066,-500.0,0.00019999,2]
[408056815,1773081043079,-500.0,0.00019999,2]
[408056816,1773081043088,-500.0,0.00019999,2]
[408056817,1773081043098,-500.0,0.00019999,2]
[408056818,1773081043108,-500.0,0.00019999,2]
[408056819,1773081043117,-500.0,0.00019999,2]
[408056820,1773081043127,-500.0,0.00019999,2]
[408056821,1773081043136,-500.0,0.00019999,2]
[408056822,1773081043146,-500.0,0.00019999,2]
[408056823,1773081043156,-500.0,0.00019999,2]
[408056824,1773081043165,-500.0,0.00019999,2]
[408056825,1773081043175,-500.0,0.00019999,2]
[408056826,1773081043184,-500.0,0.00019999,2]
[408056827,1773081043193,-500.0,0.00019999,2]
[408056828,1773081043203,-500.0,0.00019999,2]
[408056829,1773081043212,-500.0,0.00019999,2]
[408056830,1773081043222,-500.0,0.00019999,2]
[408056831,1773081043231,-484.28,0.00019999,2]
[408056832,1773081043241,-177.14945896,0.00019999,2]
[408056833,1773081043250,-500.0,0.00019999,2]
[408056834,1773081043264,-500.0,0.00019999,2]
[408056835,1773081043273,-551.6,0.00019999,2]
[408056836,1773081043283,-502.23458164,0.00019999,2]
[408056837,1773081043292,-316.7036238,0.00019999,2]
[408056838,1773081043302,-500.0,0.00019999,2]
[408056839,1773081043312,-199.82735264,0.00019999,2]
[408056840,1773081043322,-179.71611861,0.00019999,2]
[408056841,1773081043331,-150.0,0.00019999,2]
[408056842,1773081043341,-185.15269691,0.00019999,2]
[408056843,1773081043350,-2757.0,0.0002,2]
[408056844,1773081043360,-304296.28528826,0.0002,2]
[408056845,1773081043395,-162724.74487624,0.0002,2]
[408056846,1773081043404,-220446.3977571,0.0002,2]
[408056847,1773081043413,-550.0,0.0002,2]
[408056848,1773081043423,-528.64540809,0.0002,2]
[408056849,1773081043434,-1500.0,0.0002,2]
[408056850,1773081043443,-1500.0,0.0002,2]
[408056851,1773081043453,-1500.0,0.0002,2]
[408056852,1773081043465,-1500.0,0.0002,2]
[408056853,1773081043476,-1500.0,0.0002,2]
[408056854,1773081043495,-1090.0,0.0002,2]
[408056855,1773081043505,-2539332.96098587,0.0002,2]
[408056856,1773081043515,-176210.48189168,0.0002,2]
[408056857,1773081043543,-767.0,0.0002,2]
[408056858,1773081043556,-1829.65029929,0.0002,2]
[408056859,1773081043989,-2717.80717597,0.00019682,2]
[408056860,1773081044008,-500.0,0.00019782,2]
[408056861,1773081044021,-500.0,0.00019782,2]
[408056862,1773081044037,-500.0,0.00019782,2]
[408056863,1773081044052,-353.01403454,0.00019782,2]
[408056864,1773081044083,-500.0,0.00019782,2]
[408056865,1773081044102,-369.69959187,0.00019782,2]
[408056866,1773081044119,-500.0,0.00019782,2]
[408056867,1773081044135,-500.0,0.00019782,2]
[408056868,1773081044152,-396.84410475,0.00019782,2]
[408056869,1773081044169,-500.0,0.00019782,2]
[408056870,1773081044186,-301.41653115,0.00019782,2]
[408056872,1773081045775,-2717.80717597,0.00019718,2]
[408056873,1773081045791,-198.58346885,0.00019782,2]
[408056874,1773081045806,-3.40887212,0.00019782,2]
[408056875,1773081045824,-496.59112788,0.00019782,2]
[408056876,1773081045840,-500.0,0.00019782,2]
[408056877,1773081045854,-164.85720909,0.00019782,2]
[408056878,1773081045871,-335.14279091,0.00019782,2]
[408056879,1773081045887,-500.0,0.00019782,2]
[408056880,1773081045901,-249.04796888,0.00019782,2]
[408056881,1773081045916,-57.56463246,0.00019782,2]
[408056883,1773081045934,-442.43536754,0.00019782,2]
[408056885,1773081045950,-57.56463246,0.00019935,2]
[408056892,1773081379127,150.0,0.0001852,120]
[408056893,1773081488315,150.0,0.0002,120]
[408056895,1773082231757,-576.82399441,0.00014853,2]
[408056897,1773082231770,-270.85600559,0.00014853,2]
[408056898,1773082231779,-1973.52,0.00014853,2]
[408056899,1773082231789,-11.47323624,0.00015,2]
[408056900,1773082231800,-146.62676376,0.00015,2]
[408056901,1773082231810,-300.0,0.000165,2]
[408056903,1773082231819,-419.83323624,0.000165,2]
[408056904,1773082231835,-780.16676376,0.000165,2]
[408056905,1773082231844,-195.0,0.00016501,2]
[408056906,1773082231854,-195.0,0.00016501,2]
[408056907,1773082231863,-502.0,0.00017,2]
[408056908,1773082231873,-156.01,0.00017362,2]
[408056909,1773082231882,-500.0,0.00017507,2]
[408056910,1773082231891,-500.0,0.00017973,2]
[408056911,1773082231900,-500.0,0.00018,2]
[408056912,1773082231909,-1000.0,0.00018016,2]
[408056913,1773082231920,-420.0,0.0001803,2]
[408056914,1773082231929,-300.0,0.00018048,2]
[408056915,1773082231939,-174.61919141,0.00018049,2]
[408056916,1773082231948,-693.3919763,0.00018049,2]
[408056917,1773082231959,-262.90206542,0.00018049,2]
[408056918,1773082231968,-150.0,0.0001807,2]
[408056919,1773082231977,-3424.61,0.00018078,2]
[408056920,1773082231986,-2000.0,0.00018078,2]
[408056921,1773082231998,-702.63,0.00018096,2]
[408056922,1773082232008,-1680.0,0.0001812,2]
[408056923,1773082232017,-948.47,0.00018165,2]
[408056924,1773082232026,-1852.42,0.00018189,2]
[408056926,1773082232036,-3240.0,0.00018189,2]
[408056927,1773082232045,-514.00912318,0.00018256,2]
[408056928,1773082232054,-942.35005918,0.00018256,2]
[408056929,1773082232064,-500.0,0.00018274,2]
[408056930,1773082232073,-500.0,0.00018274,2]
[408056931,1773082232082,-500.0,0.00018356,7]
[408056933,1773082232091,-500.0,0.00018356,7]